bitfinex/quotes_SOLUSD_20260309
["timestamp","ask_amount","ask_price","bid_price","bid_amount"]
[1773039587766,12.02877282,83.134,83.12,0.1]
[1773039587971,2.5888248,83.133,83.12,0.1]
[1773039590082,12.02906221,83.132,83.12,0.1]
[1773039590283,2.5895388,83.131,83.105,15.68154197]
[1773039590586,2.5895388,83.131,83.106,3.64870581]
[1773039591282,4.440267,83.14,83.106,3.64870581]
[1773039591283,14.51833061,83.137,83.106,3.64870581]
[1773039591487,2.48984802,83.136,83.106,3.64870581]
[1773039591979,32.55361834,83.157,83.121,3.64870581]
[1773039592285,44.57906418,83.157,83.123,3.64870581]
[1773039594295,2.4907532,83.156,83.125,3.64870581]
[1773039598188,12.02544584,83.157,83.127,3.64870581]
[1773039598395,14.51732427,83.157,83.127,3.64870581]
[1773039598578,2.49187843,83.156,83.127,3.64870581]
[1773039599087,12.02573507,83.155,83.128,12.02964103]
[1773039599283,12.02573507,83.155,83.13,4.440267]
[1773039599489,12.02573507,83.155,83.131,3.64870581]
[1773039600275,4.440267,83.16,83.133,3.64870581]
[1773039600482,4.440267,83.18,83.151,3.64870581]
[1773039600778,6.93268992,83.18,83.151,3.64870581]
[1773039600973,2.49242292,83.179,83.151,3.64870581]
[1773039601174,2.49268286,83.169,83.146,3.64870581]
[1773039601373,2.49268286,83.159,83.133,3.64870581]
[1773039601575,2.49268286,83.149,83.126,3.64870581]
[1773039601781,2.49268286,83.149,83.131,3.64870581]
[1773039601984,2.49268286,83.169,83.131,3.64870581]
[1773039602189,2.49298574,83.167,83.132,12.02906221]
[1773039602389,2.49298574,83.167,83.133,3.64870581]
[1773039602588,4.440267,83.16,83.133,3.64870581]
[1773039602984,2.49318343,83.159,83.127,3.6411571]
[1773039603173,2.49318343,83.149,83.127,3.6411571]
[1773039604304,6.93395822,83.14,83.122,3.6411571]
[1773039604604,2.49369122,83.139,83.116,3.6411571]
[1773039604905,2.49369122,83.129,83.106,3.6411571]
[1773039605597,4.440267,83.16,83.121,3.6411571]
[1773039605598,12.02612824,83.153,83.121,3.6411571]
[1773039605788,4.440267,83.15,83.121,3.6411571]
[1773039605988,2.49393762,83.149,83.121,3.6411571]
[1773039606388,2.49393762,83.149,83.12,4.440267]
[1773039606389,14.52057602,83.149,83.123,3.6411571]
[1773039606692,4.440267,83.16,83.122,12.03050937]
[1773039606693,2.49416671,83.153,83.122,12.03050937]
[1773039606901,4.440267,83.14,83.115,3.6411571]
[1773039607396,2.49444646,83.139,83.115,3.6411571]
[1773039607588,2.49444646,83.139,83.1,4.540267]
[1773039607589,2.49444646,83.129,83.104,3.6411571]
[1773039608288,2.49444646,83.129,83.105,3.6411571]
[1773039609906,2.49513651,83.127,83.105,3.6411571]
[1773039610283,12.02993046,83.126,83.105,3.6411571]
[1773039610606,4.440267,83.13,83.107,3.66884964]
[1773039610905,12.02949632,83.129,83.107,3.66884964]
[1773039611283,14.52508867,83.129,83.107,3.66884964]
[1773039612604,2.4914262,83.128,83.1,0.1]
[1773039612982,2.4914262,83.128,83.1,3.76884964]
[1773039613600,4.82477569,83.156,83.1,3.76884964]
[1773039613601,14.51531985,83.14,83.101,3.66884964]
[1773039613783,2.48741512,83.129,83.101,3.66884964]
[1773039613985,2.48741512,83.119,83.1,0.1]
[1773039615092,2.4834149,83.124,83.101,3.66884964]
[1773039615293,12.02974428,83.128,83.101,3.66884964]
[1773039616900,12.02974428,83.128,83.103,3.66884964]
[1773039617301,16.46974256,83.13,83.103,3.66884964]
[1773039617607,18.94148839,83.13,83.103,3.66884964]
[1773039617780,16.46974256,83.13,83.103,3.66884964]
[1773039619692,2.46405331,83.129,83.105,3.66884964]
[1773039620792,4.440267,83.12,83.1,0.1]
[1773039620986,2.03034877,83.099,83.03,0.1]
[1773039621196,2.02702863,83.059,83.042,6.28571625]
[1773039621405,2.97472444,83.04,83.03,0.1]
[1773039621607,4.440267,83.04,83.021,3.66884964]
[1773039622015,4.440267,83.05,83.023,3.66884964]
[1773039622397,4.440267,83.04,83.023,3.66884964]
[1773039623110,12.82379371,83.049,83.023,3.66884964]
[1773039623706,4.440267,83.04,83.0,3.66884964]
[1773039624009,4.440267,83.04,83.001,3.66884964]
[1773039624611,0.77811407,83.039,83.001,3.66884964]
[1773039624804,4.440267,83.04,83.001,3.66884964]
[1773039625015,4.440267,83.05,83.011,3.66884964]
[1773039625416,0.77581366,83.049,83.011,3.66884964]
[1773039625715,0.77581366,83.049,83.013,3.66884964]
[1773039626305,4.440267,83.05,83.013,3.66884964]
[1773039627206,0.7714135,83.048,83.015,3.66884964]
[1773039627407,0.7714135,83.07,83.021,3.66884964]
[1773039627612,4.440267,83.06,83.021,3.66884964]
[1773039628016,0.7714135,83.059,83.021,3.66884964]
[1773039628917,4.440267,83.08,83.041,3.66884964]
[1773039629118,12.03576904,83.086,83.051,3.66884964]
[1773039629323,5.20953074,83.09,83.05,4.440267]
[1773039629324,5.20953074,83.09,83.053,3.66884964]
[1773039629814,12.03528746,83.089,83.053,3.66884964]
[1773039630014,0.76711625,83.088,83.053,3.66884964]
[1773039630211,12.03528746,83.089,83.047,12.04135722]
[1773039630212,0.7650312,83.069,83.047,12.04135722]
[1773039630823,0.7650312,83.069,83.04,12.04235242]
[1773039631225,12.03673611,83.079,83.043,3.66884964]
[1773039631402,12.03673611,83.079,83.042,12.04209917]
[1773039631403,4.440267,83.07,83.042,12.04209917]
[1773039631606,0.76298609,83.069,83.036,12.04295197]
[1773039631922,0.76298609,83.069,83.041,3.66884964]
[1773039632224,0.76298609,83.087,83.051,3.66884964]
[1773039632618,12.03572202,83.086,83.051,3.66884964]
[1773039632922,0.76084278,83.086,83.051,3.66884964]
[1773039633318,0.76084278,83.086,83.053,3.58107824]
[1773039634716,12.79059495,83.085,83.054,12.04035928]
[1773039634912,12.79059495,83.085,83.055,3.58107824]
[1773039635315,4.45332294,83.09,83.061,3.58107824]
[1773039635519,24.69654417,83.095,83.061,3.58107824]
[1773039636335,12.03456326,83.094,83.061,3.58107824]
[1773039636510,24.69654417,83.095,83.061,3.58107824]
[1773039636827,24.69654417,83.095,83.04,4.45332294]
[1773039636828,0.75077925,83.069,83.025,3.58107824]
[1773039637030,0.75077925,83.069,83.031,3.58107824]
[1773039638430,0.74687821,83.059,83.031,3.58107824]
[1773039639427,0.74687821,83.059,83.032,12.04354947]
[1773039639619,0.74687821,83.059,83.033,3.58107824]
[1773039639817,12.03894612,83.064,83.033,3.58107824]
[1773039640019,12.78393913,83.064,83.033,3.58107824]
[1773039640622,12.77841257,83.089,83.051,3.58107824]
[1773039640813,0.74312511,83.088,83.051,3.58107824]
[1773039641419,0.74312511,83.088,83.061,3.58107824]
[1773039642927,12.77502727,83.087,83.061,3.58107824]
[1773039643230,0.73767263,83.079,83.051,3.58107824]
[1773039643533,0.73767263,83.079,83.05,12.0408903]
[1773039644531,0.73767263,83.079,83.046,15.62256423]
[1773039644728,0.73767263,83.079,83.047,3.58107824]
[1773039644937,0.73767263,83.079,83.051,3.58107824]
[1773039645118,12.77276406,83.078,83.052,12.04064923]
[1773039645431,12.77276406,83.078,83.052,15.62172747]
[1773039645631,0.7340666,83.085,83.053,3.58107824]
[1773039645834,12.03601174,83.084,83.053,3.58107824]
[1773039647244,12.03601174,83.084,83.055,3.58107824]
[1773039647737,24.59654417,83.093,83.061,3.58107824]
[1773039647920,24.59654417,83.093,83.071,3.58107824]
[1773039648320,24.59654417,83.093,83.055,3.58107824]
[1773039648640,24.59654417,83.093,83.071,3.58107824]
[1773039648840,12.03485293,83.092,83.071,3.58107824]
[1773039649536,0.72721838,83.089,83.051,3.58107824]
[1773039650844,4.45332294,83.09,83.05,4.45332294]
[1773039650845,0.72551015,83.087,83.053,3.58107824]
[1773039651535,12.03530943,83.089,83.061,3.58107824]
[1773039652122,0.7238789,83.088,83.061,3.58107824]
[1773039652528,0.72225168,83.079,83.046,3.58107824]
[1773039653030,4.45332294,83.07,83.046,3.58107824]
[1773039653337,0.72061064,83.069,83.046,3.58107824]
[1773039653725,0.72061064,83.069,83.047,12.04137416]
[1773039653928,0.72061064,83.076,83.048,3.58107824]
[1773039656343,12.75334229,83.075,83.048,3.58107824]
[1773039656543,0.71602662,83.074,83.048,3.58107824]
[1773039656950,0.71602662,83.069,83.035,3.58107824]
[1773039657545,0.71602662,83.069,83.03,4.45332294]
[1773039657546,0.71453535,83.069,83.041,3.58107824]
[1773039657748,0.71453535,83.069,83.035,3.58107824]
[1773039659753,12.03488171,83.092,83.061,3.58107824]
[1773039660049,0.71162664,83.091,83.061,3.58107824]
[1773039660431,0.71017071,83.089,83.061,3.58107824]
[1773039660748,0.71017071,83.079,83.047,3.58107824]
[1773039660948,0.71017071,83.073,83.047,3.58107824]
[1773039661449,0.70874874,83.069,83.039,3.58107824]
[1773039661630,0.70874874,83.067,83.031,3.58107824]
[1773039662433,5.160671,83.06,83.031,3.58107824]
[1773039662630,0.70734806,83.059,83.031,3.58107824]
[1773039663032,4.45332294,83.05,83.024,3.74006018]
[1773039663248,4.45332294,83.05,83.01,4.45332294]
[1773039663249,0.70452419,83.039,83.01,3.74006018]
[1773039663747,0.70452419,83.038,83.011,12.04659623]
[1773039663954,4.45332294,83.03,83.01,3.74006018]
[1773039665157,4.45332294,83.03,83.005,3.74006018]
[1773039665455,12.04336683,83.034,83.007,3.74006018]
[1773039666442,12.04336683,83.034,83.009,3.74006018]
[1773039666653,12.04336683,83.034,83.008,12.04703161]
[1773039666654,0.70054298,83.048,83.01,4.45332294]
[1773039666831,0.70054298,83.048,83.011,3.74006018]
[1773039667232,0.70054298,83.048,83.008,12.04703161]
[1773039667233,4.45332294,83.06,83.021,3.74006018]
[1773039667432,0.69926569,83.059,83.021,3.74006018]
[1773039668235,0.69791401,83.039,83.009,3.74006018]
[1773039668441,4.45332294,83.04,83.011,3.74006018]
[1773039668640,12.04233948,83.041,83.011,3.74006018]
[1773039668857,12.04162481,83.046,83.011,3.74006018]
[1773039669842,12.03948952,83.06,83.021,3.77076347]
[1773039670153,4.45332294,83.05,83.021,3.77076347]
[1773039670540,12.04060949,83.053,83.023,3.77076347]
[1773039671152,0.69281332,83.039,83.007,3.77076347]
[1773039671343,0.69281332,83.039,83.01,4.45332294]
[1773039671542,0.69281332,83.039,83.01,8.22408641]
[1773039671766,0.69281332,83.039,83.011,3.77076347]
[1773039672267,0.69044793,83.047,83.011,3.77076347]
[1773039673356,0.68805831,83.045,83.013,3.77076347]
[1773039673556,4.45332294,83.05,83.013,3.77076347]
[1773039673763,0.68805831,83.059,83.021,3.77076347]
[1773039673957,0.68805831,83.049,83.021,3.77076347]
[1773039675671,0.68332074,83.047,83.021,3.77076347]
[1773039676168,0.68332074,83.047,83.015,3.77076347]
[1773039677272,12.04122916,83.048,83.006,3.77076347]
[1773039677273,0.68106175,83.039,83.006,3.77076347]
[1773039678449,0.67652479,83.037,83.008,3.77076347]
[1773039679465,12.04267925,83.038,83.008,3.77076347]
[1773039680562,0.67210994,83.042,83.011,3.77076347]
[1773039680963,0.67210994,83.039,83.011,3.77076347]
[1773039683274,0.66572221,83.037,83.011,3.77076347]
[1773039683457,12.04267925,83.038,83.005,12.04742368]
[1773039683458,4.45332294,83.03,83.005,12.04742368]
[1773039683657,0.66572221,83.029,83.006,3.77076347]
[1773039683957,12.04267925,83.038,83.011,3.77076347]
[1773039684772,12.70636176,83.038,83.011,3.77076347]
[1773039685174,0.6616677,83.037,83.011,3.77076347]
[1773039685556,0.6616677,83.029,82.991,3.77076347]
[1773039686772,0.65963051,83.019,82.992,3.77076347]
[1773039688176,12.04412969,83.028,82.992,3.77076347]
[1773039688864,0.65561289,83.027,82.994,3.77076347]
[1773039690279,12.04412969,83.028,82.994,3.77076347]
[1773039691168,12.04412969,83.028,82.996,3.77076347]
[1773039692176,12.04412969,83.028,82.998,3.77076347]
[1773039692575,12.69200557,83.028,82.998,3.77076347]
[1773039692873,0.64787588,83.027,82.998,3.77076347]
[1773039693960,0.64787588,83.027,82.963,34.5]
[1773039693961,0.64408676,83.019,82.992,3.62269435]
[1773039694162,0.64408676,83.014,82.992,3.62269435]
[1773039695277,12.04253423,83.039,83.001,3.62269435]
[1773039695468,0.64048083,83.054,83.011,3.62269435]
[1773039695662,12.03818512,83.069,83.011,3.62269435]
[1773039695663,0.64048083,83.049,83.011,3.62269435]
[1773039695858,12.04122916,83.048,83.013,3.62269435]
[1773039696075,12.03934457,83.061,83.031,3.62269435]
[1773039698561,0.63503165,83.066,83.033,3.62269435]
[1773039698762,4.45728011,83.06,83.033,3.62269435]
[1773039699262,0.63322339,83.059,83.033,3.62269435]
[1773039700063,0.63322339,83.059,83.027,15.66683227]
[1773039700281,0.63149408,83.057,83.028,3.62269435]
[1773039702685,12.03977943,83.058,83.03,3.62269435]
[1773039703288,4.45728011,83.06,83.03,3.62269435]
[1773039703667,12.03963447,83.059,83.03,3.62269435]
[1773039704282,12.03905202,83.064,83.031,3.62269435]
[1773039704584,12.03673611,83.079,83.043,3.62269435]
[1773039704789,7.70366584,83.09,83.061,3.62269435]
[1773039704968,7.70366584,83.09,83.071,3.62269435]
[1773039705290,7.70366584,83.09,83.042,42.14734711]
[1773039705291,6.28528377,83.12,83.081,3.62269435]
[1773039705467,12.02949632,83.129,83.091,3.62269435]
[1773039706168,0.62314273,83.128,83.091,3.62269435]
[1773039706886,12.02978574,83.127,83.093,3.62269435]
[1773039707088,12.02978574,83.127,83.101,3.62269435]
[1773039707900,0.61988681,83.119,83.087,3.62269435]
[1773039708090,12.02978574,83.127,83.071,3.62269435]
[1773039708091,0.61988681,83.111,83.071,3.62269435]
[1773039708395,4.45728011,83.1,83.072,3.62269435]
[1773039708692,0.61829105,83.099,83.064,3.62269435]
[1773039708893,4.45728011,83.07,83.039,3.62269435]
[1773039709196,0.61829105,83.079,83.041,3.62269435]
[1773039710086,11.93160783,83.07,83.041,3.62269435]
[1773039710778,12.03818512,83.069,83.043,3.62269435]
[1773039713168,12.03818512,83.069,83.033,3.62269435]
[1773039713169,0.61073454,83.068,83.033,3.62269435]
[1773039713375,12.03818512,83.069,83.023,3.62269435]
[1773039713376,11.93160783,83.05,83.023,3.62269435]
[1773039715089,0.60926967,83.048,83.017,12.04558305]
[1773039715390,0.60926967,83.048,83.018,3.62269435]
[1773039715588,12.04108417,83.049,83.018,3.62269435]
[1773039715997,11.93160783,83.05,83.021,3.62269435]
[1773039716291,12.04049765,83.054,83.021,3.62269435]
[1773039717078,23.97115799,83.06,83.021,3.62269435]
[1773039717284,11.93160783,83.05,83.023,3.62269435]
[1773039718591,12.03955016,83.06,83.03,11.93160783]
[1773039718788,12.03955016,83.06,83.031,3.62269435]
[1773039718789,23.97115799,83.06,83.031,3.62269435]
[1773039719395,11.93160783,83.06,83.033,3.62269435]
[1773039720289,12.03837172,83.068,83.033,3.62269435]
[1773039720491,11.93160783,83.07,83.041,3.62269435]
[1773039720697,11.93160783,83.08,83.041,3.62269435]
[1773039721884,0.5994622,83.059,83.021,3.62269435]
[1773039722204,11.93160783,83.07,83.031,3.62269435]
[1773039722393,0.59817409,83.049,83.013,12.046306]
[1773039722599,11.93160783,83.04,83.014,3.62269435]
[1773039722998,0.59687445,83.039,83.007,12.04713749]
[1773039723198,11.93160783,83.02,82.987,3.78425431]
[1773039723591,11.93160783,83.02,82.991,3.78425431]
[1773039724306,11.93160783,83.02,82.99,11.93160783]
[1773039724307,11.93160783,83.02,82.993,3.78425431]
[1773039724696,12.04473641,83.024,82.993,3.78425431]
[1773039724895,12.04398463,83.029,82.993,3.78425431]
[1773039725090,11.93160783,83.02,82.993,3.78425431]
[1773039726102,12.04398463,83.029,82.993,3.78425431]
[1773039726706,12.04266411,83.039,83.011,3.78425431]
[1773039727211,11.93160783,83.05,83.011,3.78425431]
[1773039727408,11.93160783,83.04,83.011,3.78425431]
[1773039727613,11.93160783,83.05,83.011,3.78425431]
[1773039729310,11.93160783,83.04,83.013,3.78425431]
[1773039730193,11.93160783,83.05,83.013,3.78425431]
[1773039730513,11.93160783,83.04,83.013,3.78425431]
[1773039730693,4.82477569,83.058,82.98,3.69383402]
[1773039730694,11.93160783,83.02,82.992,3.78425431]
[1773039731299,12.04543538,83.019,82.994,3.78425431]
[1773039731803,12.04543538,83.019,82.988,3.78425431]
[1773039731998,12.04543538,83.019,82.991,3.78425431]
[1773039733416,12.04543538,83.019,82.993,3.78425431]
[1773039735390,11.93160783,83.02,82.994,15.83331809]
[1773039735594,11.93160783,83.02,82.994,3.78425431]
[1773039737215,11.93160783,83.02,82.996,3.78425431]
[1773039737513,12.04518124,83.021,82.996,3.78425431]
[1773039737714,11.93160783,83.02,82.996,3.78425431]
[1773039739198,12.04543538,83.019,82.996,3.78425431]
[1773039740220,12.04543538,83.019,82.998,3.78425431]
[1773039741420,11.93160783,83.02,82.998,3.78425431]
[1773039741623,11.93160783,83.02,82.982,3.78425431]
[1773039742913,11.93160783,83.01,82.982,3.78425431]
[1773039743307,11.93160783,83.02,82.982,3.78425431]
[1773039743920,11.93160783,83.01,82.982,3.78425431]
[1773039744127,11.93160783,83.01,82.951,34.5]
[1773039744128,11.93160783,82.99,82.935,3.78425431]
[1773039744306,11.93160783,82.95,82.925,3.78425431]
[1773039744506,11.93160783,82.94,82.874,12.0665106]
[1773039744712,3.63750325,82.929,82.874,42.23278711]
[1773039745004,11.93160783,82.93,82.9,11.93160783]
[1773039745210,3.63750325,82.933,82.9,11.93160783]
[1773039745415,3.63750325,82.933,82.854,60.34693039]
[1773039745416,3.63750325,82.909,82.801,7.49342659]
[1773039745613,3.63750325,82.901,82.87,11.93160783]
[1773039745815,11.93160783,82.91,82.87,11.93160783]
[1773039746154,3.63750325,82.907,82.87,11.93160783]
[1773039746508,3.63750325,82.907,82.871,3.44178167]
[1773039747009,37.04022951,82.913,82.881,3.44178167]
[1773039747209,31.49000022,82.913,82.901,3.44178167]
[1773039747408,33.19566011,82.929,82.901,3.44178167]
[1773039747731,33.19566011,82.939,82.901,3.44178167]
[1773039748030,15.56911108,82.95,82.911,3.44178167]
[1773039748229,15.56911108,82.95,82.913,3.44178167]
[1773039748404,33.19566011,82.956,82.931,3.44178167]
[1773039748610,12.05443784,82.957,82.931,3.44178167]
[1773039748824,3.63750325,82.949,82.916,3.44178167]
[1773039749833,42.19053244,82.957,82.921,3.44178167]
[1773039749834,12.05443784,82.957,82.921,3.44178167]
[1773039750423,15.69194109,82.957,82.922,12.05952581]
[1773039750635,33.19566011,82.959,82.931,3.44178167]
[1773039750806,33.19566011,82.959,82.922,42.20834035]
[1773039750807,33.19566011,82.959,82.941,3.44178167]
[1773039751007,11.93160783,82.98,82.941,3.44178167]
[1773039751207,12.05124188,82.979,82.951,3.44178167]
[1773039751510,3.63750325,82.978,82.941,3.44178167]
[1773039752538,11.93160783,82.99,82.961,3.44178167]
[1773039752822,18.56411409,82.992,82.971,3.44178167]
[1773039753647,18.56411409,82.992,82.951,42.19358416]
[1773039753648,18.56411409,82.992,82.98,15.58252421]
[1773039754128,18.56411409,82.992,82.98,3.65091638]
[1773039754337,18.56411409,82.992,82.97,11.93160783]
[1773039754630,3.67336876,82.989,82.954,3.65091638]
[1773039754828,11.93160783,82.99,82.925,3.65091638]
[1773039754829,3.67336876,82.959,82.925,3.65091638]
[1773039755209,11.93160783,82.96,82.931,3.65091638]
[1773039755416,3.67336876,82.963,82.931,3.65091638]
[1773039755641,11.93160783,82.98,82.941,3.65091638]
[1773039755807,3.67336876,82.969,82.941,3.65091638]
[1773039756015,3.67336876,82.969,82.931,3.65091638]
[1773039757513,3.67336876,82.969,82.933,3.65091638]
[1773039757714,3.67336876,82.977,82.941,3.65091638]
[1773039758216,12.05167759,82.976,82.941,3.65091638]
[1773039758415,11.9626041,82.98,82.941,3.65091638]
[1773039759114,12.05124188,82.979,82.941,3.65091638]
[1773039760424,11.9626041,82.98,82.943,3.65091638]
[1773039760728,3.67336876,82.979,82.943,3.65091638]
[1773039760926,11.9626041,82.97,82.943,3.65091638]
[1773039761114,3.67336876,82.979,82.943,3.65091638]
[1773039763210,3.67336876,82.977,82.945,3.65091638]
[1773039763717,4.82477569,83.016,82.944,12.05632716]
[1773039763718,3.67336876,83.012,82.971,3.65091638]
[1773039763917,11.9626041,83.0,82.971,3.65091638]
[1773039764831,12.04834021,82.999,82.971,3.65091638]
[1773039765736,12.04834021,82.999,82.973,3.65091638]
[1773039766120,15.72100754,83.004,82.973,3.65091638]
[1773039767215,12.0483774,82.999,82.973,3.65091638]
[1773039769032,12.0483774,82.999,82.974,12.05196808]
[1773039770632,15.72103756,83.004,82.974,12.05196808]
[1773039771233,3.67336876,82.995,82.966,3.65091638]
[1773039771921,3.67336876,82.995,82.971,3.65091638]
[1773039772219,3.67336876,82.995,82.964,3.65091638]
[1773039772439,22.23748285,82.992,82.964,3.65091638]
[1773039772621,3.67336876,82.991,82.957,3.65091638]
[1773039772928,3.67336876,82.989,82.957,3.65091638]
[1773039773236,3.67336876,82.989,82.958,12.05429253]
[1773039773426,3.67336876,82.989,82.959,3.65091638]
[1773039773822,3.67336876,82.988,82.959,3.65091638]
[1773039774533,3.67336876,82.988,82.952,3.65091638]
[1773039774739,3.67336876,82.979,82.953,12.0548965]
[1773039774936,3.67336876,82.979,82.952,3.65091638]
[1773039774937,3.67336876,82.979,82.943,3.65091638]
[1773039775128,42.17439492,82.989,82.943,3.65091638]
[1773039775129,3.67336876,82.969,82.943,3.65091638]
[1773039775921,12.05283964,82.968,82.944,12.05630499]
[1773039776429,3.67336876,82.979,82.945,3.65091638]
[1773039776941,3.67336876,82.987,82.951,3.65091638]
[1773039777318,15.72359409,82.986,82.951,3.65091638]
[1773039777521,3.67336876,82.986,82.951,3.65091638]
[1773039777935,11.9626041,82.99,82.961,3.65091638]
[1773039778127,12.04906378,82.994,82.961,3.65091638]
[1773039778448,3.67336876,82.989,82.961,3.65091638]
[1773039779845,3.67336876,82.989,82.963,3.65091638]
[1773039780029,11.9626041,82.99,82.963,3.65091638]
[1773039780236,3.67336876,82.989,82.963,3.65091638]
[1773039780434,3.67336876,82.988,82.963,3.65091638]
[1773039780632,3.67336876,82.979,82.941,30.1417527]
[1773039780848,3.67336876,82.979,82.943,3.65091638]
[1773039781950,11.9626041,82.96,82.93,11.9626041]
[1773039782135,11.9626041,82.96,82.86,11.9626041]
[1773039782136,3.67336876,82.939,82.895,3.65091638]
[1773039782346,11.9626041,82.91,82.887,3.65091638]
[1773039782650,11.9626041,82.9,82.872,3.65091638]
[1773039783347,11.9626041,82.9,82.87,12.0626041]
[1773039783348,15.73654426,82.89,82.87,0.1]
[1773039784038,3.77394016,82.889,82.87,0.1]
[1773039784345,11.9626041,82.88,82.857,15.626054]
[1773039784651,3.77394016,82.89,82.858,3.55710656]
[1773039784652,15.73654426,82.89,82.858,3.55710656]
[1773039784942,11.9626041,82.89,82.86,11.9626041]
[1773039785147,3.77394016,82.898,82.861,3.55710656]
[1773039785549,10.37411497,82.958,82.857,42.24141325]
[1773039785550,3.77394016,82.916,82.881,3.55710656]
[1773039786056,3.77394016,82.916,82.828,16.84100227]
[1773039786057,12.05850788,82.929,82.893,3.55710656]
[1773039786544,11.9626041,82.93,82.9,11.9626041]
[1773039786749,11.9626041,82.93,82.901,3.55710656]
[1773039787249,11.9626041,82.93,82.892,12.06389036]
[1773039787250,12.05705397,82.939,82.911,3.55710656]
[1773039787639,15.83099413,82.939,82.911,3.55710656]
[1773039788047,15.83099413,82.939,82.912,12.06098031]
[1773039788550,12.05625484,82.945,82.913,3.55710656]
[1773039789140,8.68757234,82.946,82.921,3.63619142]
[1773039789546,12.0561818,82.945,82.921,3.63619142]
[1773039789746,3.43812155,82.939,82.901,3.63619142]
[1773039790155,3.43812155,82.939,82.9,11.9626041]
[1773039790156,12.05719935,82.938,82.903,3.63619142]
[1773039790345,12.05719935,82.938,82.911,3.63619142]
[1773039790545,11.9626041,82.94,82.911,3.63619142]
[1773039791346,12.05705397,82.939,82.911,3.63619142]
[1773039791663,3.43812155,82.938,82.911,3.63619142]
[1773039791844,3.43812155,82.938,82.903,3.63619142]
[1773039792159,11.9626041,82.92,82.895,3.63619142]
[1773039792358,3.43812155,82.919,82.887,3.63619142]
[1773039792862,11.9626041,82.91,82.871,3.63619142]
[1773039793041,3.43812155,82.921,82.881,3.63619142]
[1773039793358,11.9626041,82.93,82.901,3.63619142]
[1773039793556,3.43812155,82.929,82.901,3.63619142]
[1773039793957,11.9626041,82.92,82.892,3.63619142]
[1773039794364,3.43812155,82.918,82.892,3.63619142]
[1773039794547,3.43812155,82.918,82.881,3.63619142]
[1773039795850,12.06025302,82.917,82.881,3.63619142]
[1773039796463,3.43812155,82.933,82.901,3.63619142]
[1773039797163,12.058085,82.932,82.901,3.63619142]
[1773039797764,11.9626041,82.93,82.901,3.63619142]
[1773039798069,12.05850788,82.929,82.901,3.63619142]
[1773039798369,12.05850788,82.929,82.902,12.06243516]
[1773039798555,11.9626041,82.92,82.891,3.63619142]
[1773039798865,3.43812155,82.927,82.891,3.63619142]
[1773039799065,11.9626041,82.92,82.891,3.63619142]
[1773039800067,3.43812155,82.925,82.893,3.63619142]
[1773039800255,30.14232043,82.94,82.901,3.63619142]
[1773039800256,12.05828077,82.931,82.901,3.63619142]
[1773039800455,11.9626041,82.93,82.901,3.63619142]
[1773039801553,12.05828077,82.931,82.901,3.63619142]
[1773039801755,11.9626041,82.93,82.901,3.63619142]
[1773039802860,12.05850788,82.929,82.901,15.69867915]
[1773039803054,11.9626041,82.93,82.902,3.63619142]
[1773039803573,11.9626041,82.93,82.89,11.9626041]
[1773039803574,3.43812155,82.919,82.89,3.63619142]
[1773039805769,42.20477758,82.929,82.892,3.63619142]
[1773039805770,3.43812155,82.927,82.892,3.63619142]
[1773039806975,12.05951815,82.923,82.894,3.63619142]
[1773039807373,3.43812155,82.922,82.89,11.9626041]
[1773039807671,3.43812155,82.922,82.891,3.63619142]
[1773039808066,11.9626041,82.92,82.891,3.63619142]
[1773039808272,3.43812155,82.919,82.891,3.63619142]
[1773039808873,12.06010757,82.918,82.891,3.63619142]
[1773039809179,12.06010757,82.918,82.88,30.16393238]
[1773039809180,2.06680155,82.909,82.868,3.63619142]
[1773039809379,44.27806896,82.918,82.881,3.63619142]
[1773039809682,11.9626041,82.91,82.881,3.63619142]
[1773039810383,12.06010757,82.918,82.881,3.63619142]
[1773039810569,12.06010757,82.918,82.867,42.2363387]
[1773039810570,12.06010757,82.918,82.891,3.63619142]
[1773039811080,11.9626041,82.92,82.891,3.63619142]
[1773039811481,2.06946682,82.919,82.891,3.63619142]
[1773039811877,11.9626041,82.91,82.891,3.63619142]
[1773039813286,12.06141673,82.909,82.882,3.44015967]
[1773039816086,12.06141673,82.909,82.884,3.44015967]
[1773039816280,12.06010757,82.918,82.884,3.44015967]
[1773039817769,2.07503806,82.917,82.884,3.44015967]
[1773039817982,11.97825248,82.91,82.884,3.44015967]
[1773039818885,2.07581668,82.909,82.874,3.44015967]
[1773039819183,2.07581668,82.899,82.861,3.44015967]
[1773039819569,11.97825248,82.9,82.861,3.44015967]
[1773039819764,11.97825248,82.91,82.87,11.97825248]
[1773039820088,12.06025302,82.917,82.881,3.44015967]
[1773039820288,14.05555463,82.91,82.881,3.44015967]
[1773039820490,11.97825248,82.91,82.881,3.44015967]
[1773039820893,2.07730215,82.916,82.881,3.44015967]
[1773039821975,11.97825248,82.91,82.881,3.44015967]
[1773039823281,11.97825248,82.9,82.872,15.50694308]
[1773039823475,11.97825248,82.9,82.873,3.44015967]
[1773039824671,42.22005089,82.899,82.873,3.44015967]
[1773039824873,12.06287168,82.899,82.873,3.44015967]
[1773039825896,14.14388576,82.899,82.873,3.44015967]
[1773039826790,2.08174038,82.898,82.865,3.44015967]